[Event "55th Biel Festival MTO 2022"]
[Site "Biel"]
[Date "2022.07.18"]
[Round "5.25"]
[White "Peyrer, Konstantin"]
[Black "Mahitosh Dey"]
[Result "1-0"]
[ECO "A36"]
[WhiteElo "2406"]
[BlackElo "2212"]
[Annotator "TA"]
[PlyCount "129"]
[EventDate "2022.07.13"]
[EventType "swiss"]
[EventCountry "SUI"]
[SourceTitle "playchess.com"]
[Source "ChessBase"]
[SourceQuality "1"]
[TimeControl "40/5400+30:1800+30"]

{[%evp 9,129,5,10,9,10,0,0,-11,0,-21,15,0,0,-8,33,-12,-12,-17,-17,-56,0,0,0,0,0,-20,-20,-20,-20,-20,-20,-41,-41,-41,-41,-51,-51,-52,-41,-41,-41,-41,-41,-41,-41,-64,-70,-123,-119,-185,-196,-253,-222,-227,-201,-239,-237,-239,-239,-221,-180,-239,-239,-239,-239,-239,-239,-239,-239,-239,-239,-359,-307,-427,-422,-364,-297,-518,-508,-477,-458,-470,-416,-408,-393,-367,-339,-1110,-878,-1100,-964,-1035,-462,-873,-837,-1150,-1144,-1127,-1076,-951,-495,-491,0,-878,0,-460,-401,-1074,-1061,-966,-948,-963,-852,-29972,-29974,-29973,-29974,-6203,-5136,-12850,29972,29973]} 1. g3 {[%emt 0:00:16]} g6 {[%emt 0:00:09]} 2. Bg2 {[%emt 0:00:05]} Bg7 {[%emt 0:00:04]} 3. c4 {[%emt 0:00:18]} c5 {[%emt 0:00:06]} 4. Nc3 {[%emt 0:00:07]} Nc6 {[%emt 0:00:05]} 5. d3 {[%emt 0:00:55]} b6 {[%emt 0:00:09]} 6. h4 {[%emt 0:00:48] A36: Symmetrical English vs ...g6: 4 Bg2 Bg7.} h5 {[%emt 0:00:06] [#]} 7. Bg5 $146 {[%emt 0:01:06]} ({Predecessor:} 7. e3 Nh6 8. Nge2 Nf5 9. a3 Bb7 10. b4 d6 11. Rb1 Qd7 12. Ne4 Rc8 13. Qa4 Ba8 14. O-O O-O 15. Bb2 Ne5 16. Qxd7 Nxd7 17. Bxg7 Kxg7 18. Rfd1 Rfd8 19. Ng5 Bxg2 20. Kxg2 {½-½ (20) Schlosser,P (2550)-Stangl,M (2530) Lippstadt 1997}) 7... Bb7 {[%emt 0:00:10]} 8. Nh3 {[%emt 0:00:36] The position is equal.} Nf6 {[%emt 0:04:39]} 9. Rc1 {[%emt 0:09:03]} d6 {[%emt 0:00:18]} 10. Qa4 {[%emt 0:11:07]} Qd7 {[%emt 0:00:02]} 11. O-O {[%emt 0:00:23]} O-O {[%emt 0:01:08]} 12. b4 {[%emt 0:00:49]} Rfd8 {[%emt 0:02:09]} 13. bxc5 {[%emt 0:05:16]} dxc5 {[%emt 0:01:03]} 14. Rfd1 {[%emt 0:00:17]} Nd4 {[%emt 0:00:20]} (14... Nh7 $15 15. Nd5 Nxg5 16. Nxg5 e6) 15. Qxd7 $11 {[%emt 0:00:07]} Rxd7 {[%emt 0:00:06]} 16. Bxb7 {[%emt 0:02:48]} Rxb7 {[%emt 0:00:07]} 17. Bxf6 {[%emt 0:02:49]} Bxf6 {[%emt 0:00:05]} 18. Kf1 {[%emt 0:00:11]} e6 {[%emt 0:00:12]} 19. Ne4 {[%emt 0:01:37]} Bg7 {[%emt 0:00:05]} 20. e3 {[%emt 0:00:14]} Nc6 {[%emt 0:00:06]} 21. Ke2 {[%emt 0:01:05]} Rd8 {[%emt 0:00:05]} 22. f3 {[%emt 0:02:33]} Rbd7 {[%emt 0:01:23]} 23. Nhf2 {[%emt 0:00:13]} f5 {[%emt 0:01:39]} 24. Nc3 {[%emt 0:10:25]} Bxc3 {[%emt 0:00:58]} 25. Rxc3 {[%emt 0:00:07]} e5 {[%emt 0:00:11][%cal Be6e5,Be5e4][%mdl 32]} 26. Rg1 {[%emt 0:00:32]} Kg7 {[%emt 0:00:12]} 27. Nh3 {[%emt 0:07:39]} Nb4 {[%emt 0:06:49][%csl LRa2,LRd3]} 28. a3 {[%emt 0:01:16]} ({White should try} 28. g4 $15 hxg4 29. fxg4) 28... Nxd3 $17 {[%emt 0:02:11] aiming for ...Nb2.} 29. Rb1 {[%emt 0:00:26] [#] Prevents Nb2.} (29. Ng5 $17 Kf6 30. Rc2) 29... e4 $1 $19 {[%emt 0:00:28]} 30. f4 {[%emt 0:01:26] Against Ne5} (30. fxe4 $142 Ne5 31. Rc2) 30... Kf6 {[%emt 0:00:55]} 31. Kf1 {[%emt 0:00:42]} Rb7 {[%emt 0:01:50]} 32. Ng1 {[%emt 0:01:05]} Rdb8 {[%emt 0:00:08]} 33. Rcb3 {[%emt 0:00:41]} a6 {[%emt 0:03:19]} 34. Ne2 {[%emt 0:00:08]} b5 {[%emt 0:00:34][%cal Bb6b5,Bb5b4][%mdl 32]} 35. Nc3 {[%emt 0:01:02]} (35. a4 $142) 35... b4 {[%emt 0:00:10][%cal Ob4c3]} 36. Ne2 {[%emt 0:00:29]} Rd8 {[%emt 0:04:28]} 37. Kg2 {[%emt 0:03:30]} Rbd7 {[%emt 0:01:40]} 38. a4 {[%emt 0:00:08]} a5 {[%emt 0:00:35]} 39. Kf1 {[%emt 0:01:18]} Kf7 {[%emt 0:00:40]} 40. Ra1 {[%emt 0:01:50]} (40. Kg2 {was necessary.}) 40... Ke6 {[%emt 0:04:17][%cal Og6g5]} 41. Kg2 {[%emt 0:31:56] [#]} Nc1 $1 {[%emt 0:31:03][%mdl 512]} 42. Rxc1 {[%emt 0:00:23]} Rd2 {[%emt 0:00:06]} 43. Kf2 {[%emt 0:00:42] [#]} (43. Kf1 {is a better defense.} Ra2 44. Rbb1) 43... Ra2 $1 {[%emt 0:00:06]} 44. Rbb1 {[%emt 0:00:53]} Rdd2 {[%emt 0:01:14]} 45. Re1 {[%emt 0:00:05]} Rxa4 {[%emt 0:02:45] White must now prevent ...Raa2.} 46. Red1 {[%emt 0:05:02]} Rxd1 {[%emt 0:04:16]} 47. Rxd1 {[%emt 0:00:19][%mdl 4096] Endgame KRN-KR} b3 {[%emt 0:00:02]} 48. Nc3 $2 {[%emt 0:06:08]} (48. Rb1 Rb4 49. Nc3) 48... Rxc4 {[%emt 0:00:05]} 49. Nb1 {[%emt 0:00:09]} Rc2+ {[%emt 0:00:51]} 50. Ke1 {[%emt 0:00:57]} Rg2 {[%emt 0:01:25]} (50... a4 $142 51. Na3 Ra2) 51. Na3 {[%emt 0:05:59]} (51. Nc3 $142 b2 52. Rd2 Rg1+ 53. Ke2) 51... a4 {[%emt 0:00:13]} 52. Nc4 {[%emt 0:03:56]} b2 {[%emt 0:00:44]} 53. Na3 {[%emt 0:01:06]} Rh2 {[%emt 0:00:34][%cal Oc5c4] Hoping for ...c4!} 54. Kf1 {[%emt 0:01:47]} Ke7 {[%emt 0:00:44]} 55. Rb1 {[%emt 0:01:47]} Ke6 {[%emt 0:00:55]} ({And not} 55... c4 56. Kg1 Re2 57. Nxc4 $15) (55... Kf6 $142 56. Rd1 Ke7) 56. Rd1 {[%emt 0:04:15]} Ke7 {[%emt 0:00:29]} 57. Rb1 $1 {[%emt 0:01:44]} Kf7 {[%emt 0:00:04] Strongly threatening ...Ke6.} ({Worse is} 57... c4 58. Kg1 Re2 59. Nxc4 $15) 58. Re1 {[%emt 0:00:00]} (58. Kg1 $142 Re2 59. Nc4) 58... Rd2 {[%emt 0:00:00] And now ...Rd3 would win.} 59. Rb1 {[%emt 0:00:00]} Rd3 {[%emt 0:00:00][%csl LRa3,LRe3]} 60. Nc2 {[%emt 0:00:00]} a3 {[%emt 0:00:00]} 61. Ke2 {[%emt 0:00:00] Inhibits Rd1.} c4 {[%emt 0:00:00]} 62. Nxa3 {[%emt 0:00:00]} c3 {[%emt 0:00:00]} 63. Ke1 {[%emt 0:00:00]} Rd2 {[%emt 0:00:00] ( -> ...Rg2)} 64. Rd1 {[%emt 0:00:00]} c2 $4 {[%emt 0:00:00][%mdl 8192]} 65. Kxd2 {[%emt 0:00:00] Never resign too early!  Weighted Error Value: White=0.57/Black=0.44} 1-0

[Event "55th Biel Festival MTO 2022"]
[Site "Biel"]
[Date "2022.07.18"]
[Round "5.26"]
[White "Kamber Bruno"]
[Black "Ajay Krishna, S."]
[Result "0-1"]
[ECO "B53"]
[WhiteElo "2225"]
[BlackElo "2372"]
[Annotator "TA"]
[PlyCount "106"]
[EventDate "2022.07.13"]
[EventType "swiss"]
[EventCountry "SUI"]
[SourceTitle "playchess.com"]
[Source "ChessBase"]
[SourceQuality "1"]
[TimeControl "40/5400+30:1800+30"]

{[%evp 9,106,6,0,0,0,2,16,16,20,14,2,-2,0,-12,-10,-10,-5,-39,-38,-29,-16,-53,-7,-16,0,-65,-51,-41,-63,-62,-27,-21,-28,-33,-4,-10,-1,-4,-7,-4,0,0,0,-43,-47,-197,-79,-70,-62,-70,-80,-84,-87,-81,-80,-104,-104,-145,-140,-141,-89,-97,-97,-163,-167,-210,-157,-220,-226,-445,-435,-436,-247,-387,-386,-767,-767,-738,-735,-735,-719,-825,-818,-1337,-1366,-12825,-12823,-29968,-29970,-29964,-29966,-12838,-12838,-12839,-12839,-12839,-12840,-29983,-29984]} 1. e4 {[%emt 0:00:06]} c5 {[%emt 0:00:16]} 2. Nf3 {[%emt 0:00:09]} d6 {[%emt 0:00:10]} 3. d4 {[%emt 0:00:20]} cxd4 {[%emt 0:00:13]} 4. Qxd4 {[%emt 0:00:10]} Nc6 {[%emt 0:00:54]} 5. Qe3 {[%emt 0:06:19]} Nf6 {[%emt 0:05:22]} 6. Be2 {[%emt 0:00:12] B53: Sicilian: 2...d6: Lines with Qxd4.} g6 {[%emt 0:02:37]} 7. O-O {[%emt 0:00:10]} Bg7 {[%emt 0:00:15]} 8. Rd1 {[%emt 0:00:21] The position is equal.} O-O {[%emt 0:04:17]} (8... Ng4 {is more complex.} 9. Qb3 O-O 10. Nc3 Bxc3 11. Qxc3 Qb6) 9. h3 {[%emt 0:00:13]} Nd7 {[%emt 0:07:28]} 10. Nc3 {[%emt 0:02:09]} a6 {[%emt 0:06:03] [#]} 11. Bd2 $146 {[%emt 0:06:44]} ({Predecessor:} 11. a4 b6 12. Qf4 Nb4 13. Qh4 Nxc2 14. Rb1 Ne5 15. Nxe5 Bxe5 16. Nd5 Re8 17. Bd3 {½-½ (61) Harikrishna,P (2725)-Korobov,A (2685) Struga 2021}) 11... b5 {[%emt 0:04:40][%cal Bb7b5,Bb5b4][%mdl 32]} 12. Rab1 {[%emt 0:02:54]} Bb7 {[%emt 0:01:56]} 13. a4 {[%emt 0:00:35]} b4 $1 {[%emt 0:04:12]} 14. Nd5 {[%emt 0:04:36]} a5 {[%emt 0:00:52] With the idea ...e6.} 15. Bb5 {[%emt 0:02:25]} Nc5 {[%emt 0:10:20]} (15... e6 $15 {was preferrable.} 16. Nf4 Na7) 16. c3 $1 $11 {[%emt 0:05:10]} b3 {[%emt 0:01:53]} 17. c4 {[%emt 0:08:07]} (17. Nd4 $11 Na7 18. c4) 17... e6 $15 {[%emt 0:03:35]} 18. Nc3 {[%emt 0:01:03]} Nb4 {[%emt 0:02:29]} 19. Qe2 {[%emt 0:03:57]} Na2 {[%emt 0:05:04] White must now prevent ...Nxc3. 0x0.00208e7c4fc4dp-1022s more active pieces.} 20. Nxa2 {[%emt 0:14:18]} bxa2 {[%emt 0:00:05]} 21. Ra1 {[%emt 0:00:05]} Bxb2 {[%emt 0:07:02]} 22. Rxa2 {[%emt 0:04:35]} Bg7 {[%emt 0:00:28]} 23. e5 {[%emt 0:04:54]} Bxf3 {[%emt 0:03:23]} 24. Qxf3 {[%emt 0:00:15] And now Be3 would win.} dxe5 {[%emt 0:03:12]} 25. Be3 {[%emt 0:14:20][%csl LRc5,LRd8] This bishop pair is nice.} Qe7 {[%emt 0:00:21]} 26. Bc6 {[%emt 0:06:24]} Rad8 {[%emt 0:04:10][%cal Oe5e4]} 27. Rb1 {[%emt 0:00:57]} (27. Rad2 $15 Nb3 28. Rd7 Rxd7 29. Rxd7) 27... Rb8 {[%emt 0:07:39]} (27... f5 $19 {and Black stays clearly on top. Strongly threatening ...e4.} 28. Rb5 Nd3) 28. Rb5 $17 {[%emt 0:00:25]} Nb3 {[%emt 0:00:29]} 29. Bb7 {[%emt 0:06:29]} Nd4 {[%emt 0:02:34]} 30. Bxd4 {[%emt 0:00:24]} exd4 {[%emt 0:00:02]} 31. c5 {[%emt 0:00:22]} Be5 {[%emt 0:00:23]} 32. Qe4 {[%emt 0:02:35] [#]} Bc7 $1 {[%emt 0:03:38]} 33. Kf1 {[%emt 0:01:35]} Rfd8 {[%emt 0:00:05][%cal Bf8d8,Bd8d5,Bd5f5][%mdl 32]} 34. Rd2 {[%emt 0:00:26]} Qg5 {[%emt 0:01:11]} (34... f5 $142 35. Qd3 Qd7) 35. Rd1 {[%emt 0:00:40]} d3 {[%emt 0:01:23][%cal Bd4d3,Bd3d2][%mdl 32]} 36. c6 {[%emt 0:01:00]} (36. Qe3 $17 Qh4 37. Be4) 36... Qf6 $19 {[%emt 0:00:17]} 37. Rb3 {[%emt 0:00:31]} d2 {[%emt 0:02:07]} 38. Qe3 {[%emt 0:02:15]} (38. Rf3 $17 {was worth a try.} Qb2 39. Qc4) 38... Rd5 {[%emt 0:02:24] aiming for ...Rbd8.} 39. Ba6 $2 {[%emt 0:00:43]} (39. Rxd2 Qa1+ 40. Qe1 Qxa4 41. Rxd5 Qxb3 42. Rxa5 (42. Rd7 $2 Rxb7 43. cxb7 Qb5+ 44. Qe2 Qxd7 $19)) 39... Rxb3 {[%emt 0:02:44]} 40. Qxb3 {[%emt 0:00:06]} Qd4 $40 {[%emt 0:01:07][%mdl 128] Black is out for blood.} (40... Qf4 $142 41. Qf3 Qxa4) 41. Be2 {[%emt 0:31:04]} (41. Qc4 $142 Qb2 42. g3) 41... Bb6 {[%emt 0:32:11][%csl Gb6][%cal Rd4f2]} 42. Qg3 {[%emt 0:00:28]} (42. Qe3 Qb4 43. c7 Bxc7 44. Bf3) 42... Rf5 {[%emt 0:00:00][%cal Rf5f2]} 43. Bf3 {[%emt 0:00:00] [#]} Rg5 $3 {[%emt 0:00:00][%mdl 512]} 44. Bg4 {[%emt 0:00:00]} h5 {[%emt 0:00:00]} 45. c7 {[%emt 0:00:00]} Bxc7 {[%emt 0:00:00]} 46. Qxc7 {[%emt 0:00:00]} hxg4 {[%emt 0:00:00]} 47. hxg4 {[%emt 0:00:00]} Qxg4 {[%emt 0:00:00][%cal Rg4d1]} 48. Rxd2 {[%emt 0:00:00]} Qxg2+ {[%emt 0:00:00] KQR-KQR} 49. Ke2 {[%emt 0:00:00]} Qe4+ {[%emt 0:00:00]} 50. Kf1 {[%emt 0:00:00]} Rh5 {[%emt 0:00:00][%cal Rh5h1]} 51. Rd8+ {[%emt 0:00:00]} Kg7 {[%emt 0:00:00][%cal Rh5h1]} 52. Qc3+ {[%emt 0:00:00]} e5 {[%emt 0:00:00][%cal Rh5h1]} 53. f3 {[%emt 0:00:00]} Qb1+ {[%emt 0:00:00] Weighted Error Value: White=0.85/Black=0.11 (very precise)} 0-1

[Event "55th Biel Festival MTO 2022"]
[Site "Biel"]
[Date "2022.07.18"]
[Round "5.27"]
[White "Asllani Dorian"]
[Black "Herrera Reyes, Jose Antonio"]
[Result "0-1"]
[ECO "A57"]
[WhiteElo "2220"]
[BlackElo "2345"]
[Annotator "TA"]
[PlyCount "104"]
[EventDate "2022.07.13"]
[EventType "swiss"]
[EventCountry "SUI"]
[SourceTitle "playchess.com"]
[Source "ChessBase"]
[SourceQuality "1"]
[TimeControl "40/5400+30:1800+30"]

{[%evp 17,103,52,53,25,30,56,25,31,49,50,54,16,27,17,66,60,67,-14,61,41,76,64,71,80,53,50,106,50,121,79,170,160,216,127,179,178,179,164,281,282,278,279,298,283,289,237,705,585,598,580,581,588,589,552,552,552,559,-610,-610,-933,-933,-933,-933,-933,-933,-926,-926,-926,-926,-926,-912,-1739,-1268,-2470,-2217,-29966,-29967,-29971,-29972,-29971,-29971,-29976,-29978,-29985,-29977,-29997,-29998,-29999]} 1. d4 {[%emt 0:00:05]} Nf6 {[%emt 0:00:08]} 2. c4 {[%emt 0:00:08]} c5 {[%emt 0:00:06]} 3. d5 {[%emt 0:00:09]} b5 {[%emt 0:00:05]} 4. cxb5 {[%emt 0:00:20]} a6 {[%emt 0:00:05]} 5. e3 {[%emt 0:00:24]} e6 {[%emt 0:04:14]} 6. Nc3 {[%emt 0:01:01]} exd5 {[%emt 0:00:31]} 7. Nxd5 {[%emt 0:00:14]} Bb7 {[%emt 0:00:20]} 8. Nxf6+ {[%emt 0:00:31]} Qxf6 {[%emt 0:00:20]} 9. Nf3 {[%emt 0:00:37]} Be7 {[%emt 0:01:51]} 10. Be2 {[%emt 0:04:26] A57: Benko/Volga Gambit.} axb5 {[%emt 0:03:39]} 11. Bxb5 {[%emt 0:00:26]} O-O {[%emt 0:00:27]} 12. O-O {[%emt 0:02:11] White has an edge.} h6 {[%emt 0:01:01] [#]} 13. Qe2 $146 {[%emt 0:17:38]} ({Predecessor:} 13. a4 Rd8 14. Bd3 Ra7 15. a5 Nc6 16. Bd2 Qxb2 17. a6 Ba8 18. Qa4 d5 19. Rfc1 {½-½ (55) Kuuse,K (1995)-Lagergren,H (2063) ICCF email 2016}) 13... d5 {[%emt 0:06:30]} 14. Rd1 {[%emt 0:01:22]} Rd8 {[%emt 0:00:21]} 15. a4 {[%emt 0:03:17]} Nc6 {[%emt 0:01:32]} (15... Na6 $11) 16. Rb1 $14 {[%emt 0:04:58]} Qg6 {[%emt 0:12:33]} 17. Bd3 {[%emt 0:07:40] [#]} (17. Bd2 $14) 17... Qh5 {[%emt 0:04:20]} (17... Ba6 $1 $11) 18. b3 {[%emt 0:05:02]} Nb4 {[%emt 0:04:33]} 19. Bb5 {[%emt 0:06:03]} d4 {[%emt 0:03:47]} 20. exd4 {[%emt 0:07:15]} Qg6 {[%emt 0:10:25]} 21. Bd2 {[%emt 0:14:29]} (21. Qxe7 $2 Bxf3 22. Bg5 Bxd1 23. Rxd1 Qxg5 $19) 21... Nc6 {[%emt 0:10:48]} (21... cxd4 $14 22. Bxb4 Bxb4) 22. Qf1 {[%emt 0:16:34]} (22. d5 $16 Rxd5 23. Bc3 (23. Bxc6 Bxc6 24. Bf4 Bf6 $11)) 22... cxd4 {[%emt 0:04:40]} (22... Nxd4 $14 23. Nxd4 Rxd4) 23. Rbc1 {[%emt 0:01:38]} Na7 {[%emt 0:10:45]} (23... Qf6 $16) 24. Bd3 $18 {[%emt 0:01:15]} Qh5 {[%emt 0:00:01]} (24... Qf6 $16 25. b4 Bxf3) 25. Be2 {[%emt 0:01:36]} ({White should play} 25. Re1 $18 Ba3 26. Rc4 Bxf3 27. gxf3) 25... Bd6 {[%emt 0:00:52]} (25... d3 $16) 26. h3 {[%emt 0:00:14]} Re8 {[%emt 0:02:34]} 27. Be1 {[%emt 0:01:20]} (27. Nxd4 $2 Qe5 28. f4 Qxd4+ 29. Qf2 Qb2 $17) 27... Nc6 {[%emt 0:08:30]} (27... Rac8 $142) 28. Nxd4 {[%emt 0:00:09]} ({Less strong is} 28. Bb5 Rec8 29. b4 (29. Nxd4 Nxd4 30. Rxc8+ Rxc8 $15) 29... Ne7 $16) 28... Qe5 {[%emt 0:00:23][%csl Gd6][%cal Re5h2] [#]} 29. Nf3 {[%emt 0:00:05] Prevents Qh2+.} Qe7 {[%emt 0:00:18]} (29... Qf6 30. Bc3) 30. Bb5 {[%emt 0:00:21]} Ne5 {[%emt 0:00:56]} 31. Nxe5 {[%emt 0:00:04]} Bxe5 {[%emt 0:00:05]} (31... Qxe5 32. Rxd6 Qxd6 33. Bxe8 Rxe8) 32. Bxe8 {[%emt 0:00:11]} Rxe8 {[%emt 0:00:02]} 33. Qb5 {[%emt 0:00:56] And now Rd7 would win.} Bf4 {[%emt 0:02:50]} 34. Bd2 {[%emt 0:02:20]} Bxd2 {[%emt 0:04:02]} 35. Rxd2 {[%emt 0:00:05] Strongly threatening Rd7.} Qe4 {[%emt 0:00:03][%csl Gb7][%cal Re4g2]} 36. Qf1 {[%emt 0:00:28]} Qg6 {[%emt 0:00:40]} 37. Rc3 $4 {[%emt 0:00:42][%mdl 8192] [#]} (37. Rd4 $18) 37... Re1 $3 $19 {[%emt 0:00:13][%csl Gb7][%cal Rg6g2][%mdl 512]} 38. f3 {[%emt 0:02:44]} (38. f4 Qb1) 38... Qb1 {[%emt 0:02:03]} 39. Rf2 {[%emt 0:00:28]} Ba6 {[%emt 0:00:30][%mdl 64] Pin} ({And not} 39... Rxf1+ 40. Rxf1 Qb2 41. Rfc1 $17) 40. Rc4 {[%emt 0:00:19]} Rxf1+ {[%emt 0:01:08]} 41. Rxf1 {[%emt 0:30:12]} Qxb3 {[%emt 0:30:01]} 42. Rcc1 {[%emt 0:00:00]} Bxf1 {[%emt 0:00:00]} 43. Rxf1 {[%emt 0:00:00]} Qxa4 {[%emt 0:00:00][%mdl 4096] Endgame aiming for ...Qf4. KQ-KR} 44. Re1 {[%emt 0:00:00]} f5 {[%emt 0:00:00]} 45. Kh1 {[%emt 0:00:00]} Kf7 {[%emt 0:00:00] Hoping for ...Kf6.} 46. Rc1 {[%emt 0:00:00]} Kf6 {[%emt 0:00:00] Black mates.} 47. Rf1 {[%emt 0:00:00]} Qf4 {[%emt 0:00:00]} 48. Re1 {[%emt 0:00:00]} Kg5 {[%emt 0:00:00]} 49. Kg1 {[%emt 0:00:00]} Kh4 {[%emt 0:00:00]} 50. Re6 {[%emt 0:00:00]} g5 {[%emt 0:00:00]} 51. Rxh6+ {[%emt 0:00:00]} Kg3 {[%emt 0:00:00][%cal Rf4c1]} 52. h4 {[%emt 0:00:00]} Qc1# {[%emt 0:00:00] What a bad dream for White.  Weighted Error Value: White=0.60/Black=0.26 (precise)} 0-1

[Event "55th Biel Festival MTO 2022"]
[Site "Biel"]
[Date "2022.07.18"]
[Round "5.28"]
[White "Unuk, Laura"]
[Black "Li Dominique"]
[Result "1-0"]
[ECO "D46"]
[WhiteElo "2340"]
[BlackElo "2212"]
[Annotator "TA"]
[PlyCount "91"]
[EventDate "2022.07.13"]
[EventType "swiss"]
[EventCountry "SUI"]
[SourceTitle "playchess.com"]
[Source "ChessBase"]
[SourceQuality "1"]
[TimeControl "40/5400+30:1800+30"]

{[%evp 15,91,31,70,91,74,74,83,76,84,78,105,97,138,126,137,134,151,151,144,141,164,168,175,178,196,199,197,208,232,198,196,171,164,171,204,141,228,205,332,341,316,334,741,733,714,702,826,818,794,785,821,708,697,680,772,730,950,950,965,947,1106,1062,1365,766,1347,1270,29975,29973,29973,29969,29988,29989,29989,29990,29993,29994,29996,29996]} 1. d4 {[%emt 0:00:04]} Nf6 {[%emt 0:00:19]} 2. c4 {[%emt 0:00:15]} e6 {[%emt 0:00:16]} 3. Nf3 {[%emt 0:05:10]} d5 {[%emt 0:00:17]} 4. Nc3 {[%emt 0:00:18]} c6 {[%emt 0:01:54]} 5. e3 {[%emt 0:03:07]} Nbd7 {[%emt 0:00:17]} 6. Be2 {[%emt 0:01:08]} dxc4 {[%emt 0:02:34]} 7. Bxc4 {[%emt 0:00:49] The old main line.} Bd6 {[%emt 0:01:26]} 8. e4 {[%emt 0:07:19]} e5 {[%emt 0:03:54]} 9. dxe5 {[%emt 0:14:02] White is more active. D46: Semi-Slav: 5 e3 Nbd7 6 Bd3, Black avoids the Meran.} Nxe5 {[%emt 0:02:48]} 10. Nxe5 {[%emt 0:00:25]} Bxe5 {[%emt 0:00:07]} 11. Qxd8+ {[%emt 0:00:32] White is better.} Kxd8 {[%emt 0:00:01]} 12. Bxf7 {[%emt 0:00:31]} Ke7 {[%emt 0:05:15]} 13. Bb3 {[%emt 0:01:35] [#]} Be6 $146 {[%emt 0:01:07]} ({Predecessor:} 13... Bxc3+ 14. bxc3 Nxe4 15. O-O Re8 16. Ba3+ Kf6 17. Rfe1 Bf5 18. Rad1 Rad8 19. Rxd8 Rxd8 20. f3 Nd6 21. g4 Bc8 22. g5+ Kf5 23. Bc2+ Kf4 24. Bc1+ Kxf3 25. Bd1# {1-0 (25) Flum,G-Rozinov,B ICCF corr 1988}) 14. f3 {[%emt 0:05:50]} Bxb3 {[%emt 0:11:51]} 15. axb3 {[%emt 0:00:27]} Bd4 {[%emt 0:01:39]} 16. Ke2 {[%emt 0:02:26]} Rhd8 {[%emt 0:07:35]} 17. Rd1 {[%emt 0:00:53]} Rd7 {[%emt 0:04:14]} 18. Be3 {[%emt 0:05:46]} Bxe3 {[%emt 0:02:52]} 19. Kxe3 {[%emt 0:00:49]} g5 {[%emt 0:02:03]} 20. Ne2 {[%emt 0:12:59]} a5 {[%emt 0:04:18]} 21. Nd4 {[%emt 0:03:14]} Ra6 {[%emt 0:04:57]} 22. h4 {[%emt 0:10:19]} gxh4 {[%emt 0:03:29]} 23. Nf5+ {[%emt 0:00:15]} Ke6 {[%emt 0:00:35]} 24. Rxd7 {[%emt 0:01:00]} (24. Nxh4 Rb6 $16) 24... Nxd7 $18 {[%emt 0:01:11][%mdl 4096] Endgame KRN-KRN} 25. Kd4 {[%emt 0:05:48]} (25. Nxh4 $6 Rb6 $16) 25... Rb6 {[%emt 0:02:30]} (25... c5+ $16 26. Kc3 h3) 26. Kc3 {[%emt 0:00:20]} (26. Nxh4 Rxb3 27. Rxa5 c5+ 28. Kc4 Rxb2 $11) 26... Nc5 {[%emt 0:09:40]} (26... h3 $142) 27. Nd4+ {[%emt 0:00:31]} ({Not} 27. Nxh4 Rxb3+ 28. Kc2 a4 $11) ({Don't play} 27. Rxa5 $6 Nxb3 28. Ra3 Nc5 29. Nd4+ (29. Nxh4 Kd6 $18) 29... Kf6 $18) 27... Kf6 {[%emt 0:07:28]} 28. Rxa5 {[%emt 0:00:41]} h3 $2 {[%emt 0:00:34] [#]} (28... Nd7 29. Rh5 Kg6) 29. Rxc5 {[%emt 0:04:46]} hxg2 {[%emt 0:01:49] KRN-KR} 30. Rf5+ {[%emt 0:00:11]} Kg6 {[%emt 0:00:18]} 31. Ne2 {[%emt 0:00:05]} Kh6 {[%emt 0:03:04]} 32. Rf4 {[%emt 0:00:49]} Rb5 {[%emt 0:05:05]} 33. Rh4+ {[%emt 0:00:49]} Kg7 {[%emt 0:00:39]} 34. Rg4+ {[%emt 0:00:07]} Kf6 {[%emt 0:00:23]} 35. Rxg2 {[%emt 0:00:19]} Rh5 {[%emt 0:00:14]} 36. f4 {[%emt 0:01:05]} Rh1 {[%emt 0:03:15]} 37. b4 {[%emt 0:02:05]} h5 {[%emt 0:00:27]} 38. e5+ {[%emt 0:00:30][%cal Be4e5,Be5e6][%mdl 32]} Kf7 {[%emt 0:03:09]} 39. Ng3 {[%emt 0:01:15]} Rh3 {[%emt 0:01:32]} 40. Kd4 {[%emt 0:00:08] [#] f5 would kill now.} h4 {[%emt 0:02:32]} 41. Ne4 {[%emt 0:31:04] White mates.} Rh1 {[%emt 0:05:18]} 42. f5 {[%emt 0:00:00][%cal Bf4f5,Bf5f6][%mdl 32]} h3 {[%emt 0:02:55]} 43. e6+ {[%emt 0:00:00]} Kf8 {[%emt 0:01:47]} 44. Rd2 {[%emt 0:00:00]} h2 {[%emt 0:04:17]} 45. Ke5 {[%emt 0:00:00]} c5 {[%emt 0:00:37]} 46. f6 {[%emt 0:00:00] Black got outplayed after the opening.  Weighted Error Value: White=0.07 (flawless) /Black=0.28 (precise)} 1-0